bitfinex/quotes_ETHUSD_20250804
["timestamp","ask_amount","ask_price","bid_price","bid_amount"]
[1754270502761,4.6123,3543.2,3543.1,0.002]
[1754270502965,4.0623,3543.2,3543.1,0.002]
[1754270507238,3.6315,3543.2,3543.1,0.002]
[1754270508054,0.1408,3543.2,3543.1,0.002]
[1754270508357,0.6315,3543.2,3543.1,0.002]
[1754270508527,0.1408,3543.2,3543.1,0.002]
[1754270508734,0.6315,3543.2,3543.1,0.002]
[1754270509156,1.0623,3543.2,3543.1,0.002]
[1754270509453,1.60583,3543.2,3543.1,0.002]
[1754270510578,1.0623,3543.2,3543.1,0.002]
[1754270510976,4.6123,3543.2,3543.1,0.002]
[1754270511978,0.55,3543.1,3542.0,2.91804297]
[1754270512184,0.1408,3542.8,3542.0,2.91804297]
[1754270512382,4.8627,3542.7,3541.8,0.4326]
[1754270512544,0.1408,3542.3,3541.8,0.5734]
[1754270512882,4.5128,3542.3,3541.9,0.34131811]
[1754270513355,4.5128,3542.3,3541.9,3.16465067]
[1754270513556,4.5128,3542.3,3541.9,3.59725067]
[1754270514145,4.5128,3542.3,3542.0,2.8232528]
[1754270514346,4.5128,3542.3,3542.0,0.4326]
[1754270514674,4.5128,3542.3,3542.1,0.4326]
[1754270515080,4.5128,3542.3,3542.0,2.82326369]
[1754270515477,4.5128,3542.3,3541.9,3.1646107]
[1754270515784,4.5128,3542.3,3541.9,0.34131811]
[1754270516371,4.5128,3542.3,3542.0,2.82325686]
[1754270516867,4.372,3542.3,3542.2,2.96390428]
[1754270517073,4.372,3542.3,3542.2,0.1408]
[1754270517866,4.8627,3542.3,3542.0,0.65776642]
[1754270518067,4.8627,3542.3,3542.1,2.82318282]
[1754270518366,4.372,3542.3,3542.2,2.82310428]
[1754270518688,4.372,3542.6,3542.5,2.82284851]
[1754270518998,4.372,3542.7,3542.6,2.82278552]
[1754270519202,7.333,3543.7,3542.6,2.82278552]
[1754270519203,0.49460001,3543.8,3542.6,3.31374752]
[1754270519496,0.49460001,3543.8,3541.9,4.372]
[1754270519497,4.5128,3543.6,3542.7,1.10748541]
[1754270519697,0.4946,3543.5,3543.0,0.1408]
[1754270519903,0.4946,3543.4,3543.0,0.1408]
[1754270520201,4.5128,3543.6,3543.0,0.1408]
[1754270520902,0.9364,3543.5,3542.2,3.0]
[1754270521199,0.1408,3543.1,3542.6,0.1408]
[1754270521399,4.8666,3543.0,3542.4,0.02822944]
[1754270521599,0.1408,3542.9,3542.5,2.82286417]
[1754270521800,0.1408,3542.9,3542.6,2.82277744]
[1754270522105,0.6354,3542.9,3542.5,2.82284023]
[1754270522466,0.4946,3542.8,3542.4,0.43153877]
[1754270522667,0.4946,3542.8,3542.3,0.1408]
[1754270522862,0.5826,3542.9,3542.3,2.96376936]
[1754270523066,0.4946,3542.7,3542.3,2.96376936]
[1754270523482,0.4946,3542.6,3542.4,2.82293806]
[1754270523900,0.4946,3542.6,3542.3,2.96380913]
[1754270524083,0.4946,3542.6,3542.4,2.82293783]
[1754270524292,0.4946,3542.6,3542.3,3.48655352]
[1754270524498,0.1408,3542.7,3542.6,2.82273423]
[1754270525074,0.1408,3542.7,3542.6,3.29753423]
[1754270525283,0.1408,3542.7,3542.6,2.82273423]
[1754270525588,4.372,3543.0,3542.8,2.82261138]
[1754270525997,4.372,3543.0,3542.6,0.1408]
[1754270525998,4.8666,3543.0,3542.6,0.1408]
[1754270526198,4.8666,3543.0,3542.6,2.9635772]
[1754270526411,0.4946,3542.9,3542.5,2.82284499]
[1754270526615,4.9546,3543.0,3542.5,0.1408]
[1754270526811,4.9546,3543.0,3542.3,0.66355489]
[1754270526812,0.4946,3542.8,3542.3,0.66355489]
[1754270527015,4.5128,3543.0,3542.4,2.82289247]
[1754270527201,0.4946,3542.7,3542.5,2.82285899]
[1754270527513,4.5118,3543.4,3542.9,2.96327381]
[1754270527703,4.5118,3543.4,3542.6,0.491]
[1754270527704,4.5118,3543.4,3543.0,3.40103236]
[1754270527901,5.0064,3543.4,3543.1,0.26131008]
[1754270528101,5.0064,3543.4,3543.2,0.26131008]
[1754270528287,5.0064,3543.4,3542.9,0.1408]
[1754270528288,4.5118,3543.4,3543.3,0.26131008]
[1754270528479,4.9536,3543.4,3543.3,0.26131008]
[1754270528682,5.44896,3543.4,3543.3,0.26131008]
[1754270528892,5.94356,3543.4,3543.3,0.26131008]
[1754270531192,8.94356,3543.4,3543.3,0.26131008]
[1754270532078,9.49356,3543.4,3543.3,0.26131008]
[1754270532679,9.49356,3543.4,3542.3,0.26131008]
[1754270532883,9.49356,3543.4,3541.6,3.0162]
[1754270532884,0.55,3543.2,3542.4,0.26131008]
[1754270533088,5.3074,3543.1,3542.5,0.26131008]
[1754270533284,0.9364,3543.0,3542.6,0.26131008]
[1754270533515,0.9364,3542.9,3542.7,0.26131008]
[1754270533820,0.1408,3542.5,3542.0,0.1428]
[1754270534020,4.371,3542.4,3542.1,0.55781592]
[1754270534221,4.8656,3542.4,3542.2,0.2612031]
[1754270534526,4.8656,3542.4,3542.1,0.29661282]
[1754270534527,4.8656,3542.4,3542.3,0.2612031]
[1754270536923,4.8656,3542.4,3542.1,0.29661282]
[1754270537829,4.8656,3542.4,3542.0,0.1428]
[1754270537830,4.371,3542.4,3542.0,0.1428]
[1754270538036,0.4946,3542.3,3542.0,0.002]
[1754270538951,4.371,3542.4,3542.0,0.002]
[1754270539228,4.371,3542.4,3542.0,2.82519486]
[1754270539429,4.8656,3542.4,3542.0,2.82519486]
[1754270539636,4.371,3542.4,3542.0,2.82519486]
[1754270539816,4.8656,3542.4,3542.0,2.82519486]
[1754270540795,4.8656,3542.4,3542.1,2.82317496]
[1754270542795,4.371,3542.5,3542.3,2.82295542]
[1754270543001,4.371,3542.5,3542.4,2.82294489]
[1754270543325,4.371,3542.5,3542.3,2.82299453]
[1754270543526,4.371,3542.5,3542.4,2.82294489]
[1754270543914,4.371,3542.5,3542.4,0.26141855]
[1754270544136,4.371,3542.5,3542.4,3.08436344]
[1754270545050,4.371,3542.5,3542.4,0.26141855]
[1754270545051,5.3074,3542.5,3542.4,0.26141855]
[1754270545345,5.97894,3542.5,3542.4,0.26141855]
[1754270545744,5.4482,3542.5,3542.4,0.26141855]
[1754270550939,25.15013043,3542.5,3542.4,0.26141855]
[1754270551258,25.15013043,3542.5,3542.0,0.002]
[1754270551259,3.55,3542.4,3542.0,0.002]
[1754270551403,19.70193043,3542.1,3542.0,0.002]
[1754270551606,7.38599304,3542.1,3542.0,0.002]
[1754270551818,5.9656,3542.1,3542.0,0.002]
[1754270553335,4.5108,3542.1,3542.0,0.002]
[1754270553752,5.4156,3542.1,3542.0,0.002]
[1754270556625,24.56753043,3542.1,3542.0,0.002]
[1754270556827,25.11753043,3542.1,3542.0,0.002]
[1754270557054,27.62938347,3542.1,3542.0,0.002]
[1754270557245,7.47785304,3542.1,3542.0,0.002]
[1754270557446,4.966,3542.1,3542.0,0.002]
[1754270557845,4.5108,3542.1,3542.0,0.002]
[1754270558147,4.5118,3542.1,3542.0,0.002]
[1754270559266,4.967,3542.1,3542.0,0.002]
[1754270559438,5.4166,3542.1,3542.0,0.002]
[1754270559634,5.95836,3542.1,3542.0,0.002]
[1754270559834,6.50836,3542.1,3542.0,0.002]
[1754270561275,9.50836,3542.1,3542.0,0.002]
[1754270564286,9.59673184,3542.1,3542.0,0.002]
[1754270564987,4.60016712,3542.1,3542.0,0.002]
[1754270565153,0.1408,3542.1,3542.0,0.4717]
[1754270565345,4.37,3542.1,3542.0,0.4717]
[1754270565784,4.37,3542.1,3542.0,0.002]
[1754270565948,5.41718,3542.1,3542.0,0.002]
[1754270566151,4.966,3542.1,3542.0,0.002]
[1754270566484,5.9656,3542.1,3542.0,0.002]
[1754270566793,7.975078,3542.1,3542.0,0.002]
[1754270567082,10.975078,3542.1,3542.0,0.002]
[1754270576060,10.97509818,3542.1,3542.0,0.002]
[1754270577154,12.072708,3542.1,3542.0,0.002]
[1754270577568,32.247,3541.7,3541.6,0.002]
[1754270577787,63.96065002,3541.3,3539.6,0.4697]
[1754270578003,0.55,3540.9,3539.8,0.4697]
[1754270578188,3.0,3541.0,3539.8,0.4697]
[1754270578189,0.55,3540.7,3539.8,0.4697]
[1754270578501,0.55,3540.4,3539.5,0.7473]
[1754270578675,0.55,3540.2,3539.6,0.7473]
[1754270578879,4.4583877,3540.1,3539.6,0.7473]
[1754270579087,6.15269302,3540.1,3539.7,0.7476]
[1754270579383,6.15269302,3540.1,3539.8,0.7476]
[1754270579384,1.76980494,3540.0,3539.8,0.7476]
[1754270579581,4.37,3539.9,3539.8,0.7476]
[1754270579778,4.37,3539.9,3539.5,0.47]
[1754270579984,4.37,3539.9,3539.6,0.47]
[1754270580190,1.76353173,3539.8,3539.7,0.7476]
[1754270580419,1.76353173,3539.8,3539.7,0.2776]
[1754270580571,1.76353173,3539.8,3539.1,2.82555674]
[1754270580901,1.76353173,3539.8,3538.8,2.82580714]
[1754270580902,4.371,3539.7,3539.0,2.82562944]
[1754270581108,4.371,3539.7,3539.2,0.47]
[1754270581648,4.371,3539.7,3539.3,0.2776]
[1754270581974,4.271,3539.7,3539.4,0.7476]
[1754270582173,4.271,3539.7,3539.5,0.7476]
[1754270582372,1.76219844,3539.6,3539.5,0.2776]
[1754270582916,1.76219844,3539.6,3539.0,2.82564055]
[1754270582917,1.76219844,3539.6,3539.3,0.47]
[1754270583101,1.76219844,3539.6,3539.5,0.47]
[1754270583291,1.76219844,3539.6,3539.5,0.7476]
[1754270583292,6.13319844,3539.6,3539.5,0.7476]
[1754270584821,1.76219844,3539.6,3539.5,0.7476]
[1754270584973,6.13319844,3539.6,3539.5,1.10489615]
[1754270585178,6.13319844,3539.6,3539.5,0.7476]
[1754270585787,6.13319844,3539.6,3539.5,3.5728578]
[1754270586422,6.13319844,3539.6,3539.5,0.7476]
[1754270586725,6.13319844,3539.6,3539.5,3.5728578]
[1754270587701,6.13319844,3539.6,3539.5,3.7144578]
[1754270587897,6.13319844,3539.6,3539.5,4.36844363]
[1754270588099,1.76219844,3539.6,3539.5,4.36844363]
[1754270588522,1.76219844,3539.6,3539.5,1.54318583]
[1754270588825,1.76219844,3539.6,3539.5,2.9668578]
[1754270589389,19.18185223,3540.4,3539.5,2.9668578]
[1754270589390,4.371,3540.8,3539.5,3.0]
[1754270589606,4.45,3540.7,3540.6,2.82438004]
[1754270589808,0.1408,3541.1,3540.6,2.82438004]
[1754270589809,0.1408,3541.1,3540.8,2.82421685]
[1754270590008,4.451,3541.0,3540.9,2.82412211]
[1754270590328,0.1408,3541.3,3540.9,2.82414075]
[1754270590518,4.45,3541.2,3541.0,2.82399157]
[1754270591734,4.45,3541.1,3541.0,3.40304116]
[1754270591931,0.1408,3541.3,3541.2,2.8239015]
[1754270592133,4.5878,3541.3,3541.2,2.8239015]
[1754270592498,4.447,3541.3,3541.2,2.8239015]
[1754270592805,4.447,3541.3,3541.2,2.9647015]
[1754270593011,4.447,3541.3,3541.2,3.60147577]
[1754270593604,0.1408,3541.7,3541.3,2.82375203]
[1754270593895,4.445,3541.6,3541.3,2.82375203]
[1754270594137,4.445,3541.6,3541.4,2.82370958]
[1754270594430,4.445,3541.6,3541.3,2.82375705]
[1754270594739,4.445,3541.6,3541.2,2.8238974]
[1754270594950,0.6173,3541.5,3541.0,0.1416]
[1754270595117,0.1408,3541.5,3541.0,0.1416]
[1754270595313,0.1408,3541.7,3541.2,0.1408]
[1754270595515,4.444,3541.6,3541.4,2.82368126]
[1754270596120,4.444,3541.6,3541.2,2.96467346]
[1754270596455,4.444,3541.6,3541.2,3.26114081]
[1754270596608,4.444,3541.6,3541.3,2.82376502]
[1754270596911,4.9205,3541.6,3541.4,2.82373786]
[1754270597325,4.444,3541.6,3541.4,2.82373786]
[1754270597511,4.444,3541.6,3541.2,0.43726735]
[1754270597834,1.0688,3541.5,3541.0,0.1416]
[1754270598035,0.1408,3541.5,3541.0,0.1416]
[1754270598335,0.928,3541.4,3541.0,0.1416]
[1754270598500,5.365,3541.3,3540.2,3.0]
[1754270598699,0.1408,3541.1,3540.9,2.82411276]
[1754270598947,4.436,3541.0,3540.8,2.82421226]
[1754270599231,4.436,3541.0,3540.6,2.96591503]
[1754270599232,4.436,3541.0,3540.7,2.82428308]
[1754270599402,4.9125,3541.0,3540.7,3.4033171]
[1754270599598,4.9125,3541.0,3540.9,2.82414075]
[1754270599799,4.436,3541.0,3540.9,2.82414075]
[1754270600001,4.436,3541.0,3540.7,3.40332056]
[1754270600200,4.9125,3541.0,3540.7,3.40332056]
[1754270600439,4.9125,3541.0,3540.8,0.63693788]
[1754270600648,4.9125,3541.0,3540.8,3.46114175]
[1754270600843,4.9125,3541.0,3540.8,2.82420387]
[1754270601045,4.436,3541.0,3540.6,2.96590165]
[1754270601216,0.928,3540.9,3540.6,0.1416]
[1754270601751,0.928,3540.8,3539.3,0.002]
[1754270601962,4.431,3540.7,3539.9,2.82493307]
[1754270602170,0.928,3540.6,3539.9,2.82493307]
[1754270602482,0.928,3540.5,3539.9,0.28249331]
[1754270602761,4.9115,3540.4,3539.9,3.10739758]
[1754270602944,0.4515,3540.3,3539.9,0.28249331]
[1754270603249,0.4515,3540.2,3540.0,0.31075028]
[1754270603444,4.435,3540.4,3540.0,0.31075028]
[1754270603748,0.928,3540.1,3540.0,0.31075028]
[1754270604246,4.9115,3540.4,3539.9,2.82487463]
[1754270604446,4.435,3540.4,3539.9,2.82487463]
[1754270604651,0.928,3540.3,3539.9,2.82487463]
[1754270604853,0.4765,3540.2,3540.0,0.5649964]
[1754270605365,0.928,3540.2,3540.0,0.5649964]
[1754270605528,0.4765,3540.1,3540.0,0.5649964]
[1754270605920,0.4765,3540.1,3540.0,2.82485875]
[1754270605921,4.9075,3540.1,3540.0,2.82485875]
[1754270606340,4.9075,3540.1,3539.9,2.82492021]
[1754270608257,4.431,3540.1,3539.9,2.82492021]
[1754270608457,4.431,3540.1,3539.9,2.82491585]
[1754270608766,4.431,3540.1,3540.0,2.82485875]
[1754270609059,4.9059,3540.1,3540.0,2.82485875]
[1754270609753,4.431,3540.1,3540.0,2.82485875]
[1754270613425,4.9059,3540.1,3540.0,2.82485875]
[1754270613959,4.9059,3540.1,3539.7,0.1416]
[1754270613960,5.3411,3540.1,3539.9,2.82491462]
[1754270614165,4.431,3540.1,3539.9,2.82491462]
[1754270614330,4.431,3540.1,3540.0,2.82485875]
[1754270614960,5.3411,3540.1,3540.0,2.82485875]
[1754270615589,5.3411,3540.1,3539.9,2.82491343]
[1754270615944,0.9101,3540.0,3539.9,2.82491343]
[1754270616345,0.9101,3540.0,3539.9,3.40407432]
[1754270617654,0.4352,3540.0,3539.9,3.40409944]
[1754270617975,0.9101,3540.0,3539.9,2.82493855]
[1754270619681,0.9101,3540.0,3539.7,0.1416]
[1754270619863,4.431,3540.1,3539.7,2.96669112]
[1754270620179,4.431,3540.1,3539.8,2.82501836]
[1754270620180,0.9101,3539.9,3539.8,2.82501836]
[1754270623465,4.431,3540.1,3539.5,0.002]
[1754270623669,4.407,3540.0,3539.8,2.82498861]
[1754270624013,0.9101,3539.9,3539.8,0.29685886]
[1754270624163,0.9101,3539.9,3539.5,2.96884089]
[1754270624365,0.9101,3539.8,3539.5,0.002]
[1754270624614,0.1416,3539.6,3539.5,0.002]
[1754270624980,1.0517,3539.6,3539.5,0.002]
[1754270627100,4.406,3539.7,3539.5,0.002]
[1754270627274,4.404,3539.6,3539.5,2.8272578]
[1754270627473,4.403,3539.7,3539.6,2.82517798]
[1754270627688,0.1416,3540.8,3540.3,2.82461938]
[1754270627886,5.3131,3540.7,3540.3,2.82460609]
[1754270628195,0.9101,3540.6,3540.3,2.96620609]
[1754270628397,0.4749,3540.5,3540.4,2.82452292]
[1754270628571,0.4749,3540.5,3540.3,2.96621599]
[1754270628777,4.8779,3540.4,3540.3,0.1416]
[1754270629013,4.8779,3540.4,3539.5,0.851037]
[1754270629014,5.3131,3540.4,3539.5,0.851037]
[1754270629216,4.403,3540.4,3540.1,0.1416]
[1754270629370,0.9101,3540.3,3540.1,2.96635592]
[1754270629565,0.9101,3540.3,3540.0,2.82483859]
[1754270629885,0.9101,3540.2,3540.1,2.82477091]
[1754270630195,5.0195,3540.4,3540.3,2.82461938]
[1754270630397,5.0195,3540.4,3540.2,2.82467527]
[1754270630597,4.9798,3540.4,3540.0,2.82484671]
[1754270630805,0.4749,3540.3,3540.1,2.82477896]
[1754270630987,0.4749,3540.3,3540.2,2.82469916]
[1754270631301,0.4749,3540.2,3540.1,2.82475459]
[1754270632196,0.4749,3540.2,3540.1,2.82477896]
[1754270634508,0.4352,3540.3,3540.1,2.82475545]
[1754270634714,0.9101,3540.3,3540.1,2.82475545]
[1754270634881,0.4749,3540.2,3540.1,2.82475545]
[1754270635414,5.4547,3540.4,3540.1,2.82475545]
[1754270635588,0.4749,3540.2,3540.1,2.82475545]
[1754270636378,0.9101,3540.2,3540.1,2.82475545]
[1754270639492,0.9101,3540.2,3540.1,3.43354872]
[1754270640285,0.4733,3541.4,3540.1,0.63704105]
[1754270640480,0.1408,3541.2,3541.1,2.82398124]
[1754270640899,0.1408,3541.2,3541.1,5.82398124]
[1754270641210,0.001,3541.5,3541.4,2.82374202]
[1754270641531,0.001,3541.5,3541.4,3.82577822]
[1754270641904,0.001,3541.5,3541.4,6.82577822]
[1754270644535,0.001,3542.0,3541.9,5.8233434]
[1754270645237,0.001,3542.0,3541.9,5.9641434]
[1754270645600,0.001,3542.0,3541.9,10.3481434]
[1754270645801,0.001,3542.0,3541.9,7.28130201]
[1754270646123,0.001,3542.0,3541.9,11.66530201]
[1754270646992,0.001,3542.0,3541.9,7.28130201]
[1754270647193,0.001,3542.0,3541.9,11.66430201]
[1754270647626,0.001,3542.0,3541.9,7.28130201]
[1754270647831,0.001,3542.0,3541.9,11.66230201]
[1754270648394,0.4586,3542.4,3542.3,5.82302458]
[1754270648395,0.001,3542.4,3542.3,5.82302458]
[1754270648599,0.001,3542.4,3542.3,6.40532704]
[1754270648928,0.001,3542.4,3542.3,6.54612704]
[1754270650413,0.4586,3542.8,3542.3,6.54612704]
[1754270650414,0.001,3542.8,3542.7,2.82270584]
[1754270650614,0.001,3542.8,3542.7,8.20707091]
[1754270650829,1e-08,3542.8,3542.7,11.20707091]
[1754270651048,1e-08,3542.8,3542.7,30.93306494]
[1754270651416,1e-08,3542.8,3542.7,31.78133594]
[1754270653421,1e-08,3543.8,3542.7,31.78133594]
[1754270653422,1e-08,3543.8,3543.7,5.8219093]
[1754270653621,1e-08,3543.8,3543.7,10.3417093]
[1754270653942,1e-08,3543.8,3543.7,10.8917093]
[1754270654816,1e-08,3543.8,3543.7,30.06770333]
[1754270655153,1e-08,3543.8,3543.7,25.68870333]
[1754270655341,1e-08,3543.8,3543.7,31.38386194]
[1754270655846,1e-08,3543.8,3543.7,12.20786791]
[1754270656044,1e-08,3543.8,3543.7,7.494761]
[1754270656260,1e-08,3543.8,3543.7,12.421761]
[1754270657467,1e-08,3544.2,3544.1,3.37159081]
[1754270657668,0.001,3544.6,3544.1,3.37159081]
[1754270657669,0.001,3544.6,3544.5,6.37127239]
[1754270657866,1e-08,3544.8,3544.7,3.37111321]
[1754270658069,1e-08,3544.8,3544.7,10.74711321]
[1754270658241,1e-08,3544.8,3544.7,11.61167828]
[1754270659557,1e-08,3545.1,3545.0,2.82087447]
[1754270659756,1e-08,3545.1,3545.0,7.19687447]
[1754270659958,1e-08,3545.1,3545.0,11.92222687]
[1754270660382,1e-08,3545.5,3545.4,2.82055621]
[1754270660585,1e-08,3545.5,3545.4,10.74555621]
[1754270660946,1e-08,3545.5,3545.4,10.74355621]
[1754270661152,1e-08,3545.5,3545.4,12.09997711]
[1754270661575,1e-08,3545.5,3545.4,12.57327711]
[1754270662762,0.47330001,3545.5,3545.4,12.57327711]
[1754270662962,0.93090001,3545.5,3545.4,12.57327711]
[1754270664895,1e-08,3545.5,3545.4,12.57327711]
[1754270665272,1e-08,3545.5,3545.4,8.20027711]
[1754270665456,1e-08,3545.5,3545.4,12.57327711]
[1754270665661,0.93090001,3545.5,3545.4,12.57327711]
[1754270666382,1e-08,3545.5,3545.4,12.57327711]
[1754270667725,0.93090001,3545.5,3545.4,12.16307711]
[1754270668297,0.93090001,3545.5,3545.4,7.79107711]
[1754270668470,0.93090001,3545.5,3545.4,12.16307711]
[1754270668677,0.93090001,3545.5,3545.4,7.79107711]
[1754270668894,0.93090001,3545.5,3545.4,12.16307711]
[1754270670679,1e-08,3545.5,3545.4,12.71307711]
[1754270671091,0.48020001,3545.5,3545.4,12.71307711]
[1754270671271,0.93090001,3545.5,3545.4,12.71307711]
[1754270671474,0.93090001,3545.5,3545.4,12.16307711]
[1754270672222,0.93090001,3545.5,3545.4,7.79107711]
[1754270672420,0.93090001,3545.5,3545.4,0.1408]
[1754270673126,0.93090001,3545.5,3545.1,2.82078632]
[1754270673308,0.93090001,3545.5,3545.3,2.82062841]
[1754270673309,0.9309,3545.4,3545.3,2.82062841]
[1754270673625,1e-08,3545.5,3545.4,2.96135621]
[1754270673796,1e-08,3545.5,3545.4,3.82163282]
[1754270674197,0.93090001,3545.5,3545.4,3.82163282]
[1754270674601,0.93090001,3545.5,3545.4,0.1408]
[1754270675005,0.93090001,3545.5,3545.1,2.82077108]
[1754270675195,0.9309,3545.4,3545.2,0.1408]
[1754270675599,1e-08,3545.5,3545.3,2.82063577]
[1754270675904,1e-08,3545.5,3545.2,0.1408]
[1754270675905,1e-08,3545.5,3545.4,2.82055621]
[1754270676118,1e-08,3545.5,3545.4,6.97666323]
[1754270677194,0.93090001,3545.5,3545.4,0.1408]
[1754270677399,0.93090001,3545.5,3545.3,2.82057419]
[1754270677595,0.9309,3545.4,3545.3,2.82057419]
[1754270679020,1e-08,3545.5,3545.4,5.82055621]
[1754270679221,1e-08,3545.5,3545.4,7.70454665]
[1754270679639,1e-08,3545.5,3545.4,12.08354665]
[1754270680148,0.93090001,3545.5,3545.4,7.70454665]
[1754270680612,0.93090001,3545.5,3545.4,5.82055621]
[1754270681224,0.93090001,3545.5,3545.4,2.82055621]
[1754270683627,0.93090001,3545.5,3545.3,2.82063231]
[1754270683827,1e-08,3545.5,3545.3,2.82063231]
[1754270684016,0.9309,3545.4,3545.3,2.82063231]
[1754270685028,0.9309,3545.4,3545.0,3.0]
[1754270685231,1e-08,3545.5,3545.3,2.82063577]
[1754270685956,0.9309,3545.4,3545.0,5.82082152]
[1754270686125,1e-08,3545.5,3545.0,5.82082152]
[1754270686331,0.9309,3545.4,3544.7,4.376]
[1754270686559,1e-08,3545.5,3545.3,2.82057526]
[1754270686756,1e-08,3545.5,3543.7,2.82188131]
[1754270686971,1e-08,3545.5,3544.6,2.82113639]
[1754270687175,1e-08,3545.5,3543.8,4.376]
[1754270687176,0.9309,3545.4,3543.8,0.113066]
[1754270687336,1e-08,3545.5,3543.9,0.31448556]
[1754270687337,0.9309,3545.3,3543.9,0.31448556]
[1754270687679,1e-08,3545.5,3544.5,2.82121102]
[1754270687680,0.1408,3544.9,3544.5,2.82121102]
[1754270687835,0.9309,3544.8,3544.5,2.82121102]
[1754270688035,0.1408,3544.9,3544.5,2.82121102]
[1754270688230,0.9309,3544.7,3544.4,0.1408]
[1754270688470,1e-08,3545.5,3543.7,2.8219093]
[1754270688471,0.9309,3544.6,3543.7,2.8219093]
[1754270688674,0.55,3545.4,3543.1,7.19835106]
[1754270688839,0.1408,3544.4,3543.9,0.1408]
[1754270689037,0.9309,3544.3,3544.1,2.82157491]
[1754270689361,0.1408,3544.4,3544.1,2.82157491]
[1754270689362,0.9309,3544.2,3544.1,2.82157491]
[1754270689535,0.9309,3544.2,3543.9,0.1408]
[1754270689734,0.9309,3544.1,3543.9,0.1408]
[1754270690045,0.9309,3544.0,3543.9,2.96255004]
[1754270690247,0.4507,3544.0,3543.9,2.96255004]
[1754270690479,0.4802,3544.3,3544.2,2.82145538]
[1754270690683,0.4802,3544.3,3544.2,2.96225538]
[1754270691047,0.9309,3544.3,3544.2,0.1408]
[1754270691246,0.9309,3544.3,3544.2,2.9623112]
[1754270691906,0.9309,3544.3,3543.6,0.002]
[1754270692048,0.9309,3544.3,3543.6,0.1428]
[1754270692049,0.9309,3544.2,3543.6,0.1428]
[1754270692247,0.9309,3544.2,3543.7,2.82190122]
[1754270692460,0.9309,3544.1,3543.6,0.1428]
[1754270692675,0.4802,3544.1,3544.0,2.96247042]
[1754270692880,0.4802,3544.4,3544.3,2.82143159]
[1754270693086,0.4802,3544.9,3544.3,0.1408]
[1754270693302,0.4802,3544.9,3544.8,2.96183362]
[1754270693800,0.4802,3545.3,3544.8,0.1408]
[1754270694103,0.9309,3545.2,3545.1,0.1408]
[1754270694603,0.9309,3545.2,3545.1,2.9615273]
[1754270695510,0.9309,3545.2,3545.1,0.1408]
[1754270695897,0.9309,3545.2,3544.8,2.96182536]
[1754270696097,0.4507,3545.2,3545.1,2.8207949]
[1754270696306,0.4802,3545.4,3545.3,2.82063577]
[1754270696613,1e-08,3545.5,3545.4,2.82055621]
[1754270698016,0.93090001,3545.5,3545.4,2.82055621]
[1754270698183,1e-08,3545.5,3545.4,2.82055621]
[1754270698374,1e-08,3545.5,3545.4,3.83696292]
[1754270699384,0.49830001,3545.5,3545.4,3.83696292]
[1754270699585,1e-08,3545.5,3545.4,3.83696292]
[1754270699782,1e-08,3545.5,3544.7,0.4741]
[1754270700081,0.9724,3545.4,3545.3,2.82063577]
[1754270700481,0.9724,3545.4,3545.3,3.0]
[1754270702891,0.9724,3545.4,3544.3,4.378]
[1754270703189,0.9724,3545.3,3544.7,2.82110281]
[1754270703390,1e-08,3545.5,3544.8,3.0]
[1754270703585,0.9724,3545.2,3544.7,3.0]
[1754270703785,0.9724,3545.1,3544.6,2.82117763]
[1754270704113,0.9724,3545.0,3544.4,3.0]
[1754270704317,1e-08,3545.5,3544.6,3.0]
[1754270704480,0.9724,3544.9,3544.3,3.0]
[1754270704681,0.9724,3544.8,3544.6,2.82118268]
[1754270704882,0.9724,3544.7,3544.5,2.82125654]
[1754270705096,1e-08,3545.5,3544.6,3.0]
[1754270705383,1e-08,3545.5,3544.4,2.82132665]
[1754270705595,0.9724,3545.4,3544.4,2.82132665]
[1754270705911,0.9724,3545.3,3544.4,2.82132665]
[1754270706111,0.9724,3545.2,3544.4,2.82132665]
[1754270706321,0.9724,3545.1,3543.2,0.21494925]
[1754270706479,0.9724,3545.0,3543.6,2.82398611]
[1754270706680,0.9724,3544.9,3544.0,2.82166574]
[1754270706888,0.55,3544.7,3543.6,0.002]
[1754270707080,0.15224,3544.6,3543.6,2.82393625]
[1754270707276,0.15224,3544.6,3543.7,5.82190658]
[1754270707277,1.12464,3544.6,3543.7,5.82190658]
[1754270707533,0.9724,3544.5,3543.7,5.82190658]
[1754270707731,0.15224,3544.6,3543.7,3.0]
[1754270708039,0.9724,3544.4,3543.7,2.82187511]
[1754270708344,0.55,3545.1,3543.7,2.82187511]
[1754270708514,0.9724,3544.3,3543.6,2.82393149]
[1754270708834,0.9724,3544.2,3543.6,0.002]
[1754270709183,0.9724,3544.1,3543.6,0.002]
[1754270709850,4.375,3544.6,3543.6,0.86662871]
[1754270710023,0.6149,3544.1,3543.9,2.82171329]
[1754270710345,0.9724,3544.0,3543.9,2.82171329]
[1754270712039,0.4983,3544.3,3543.6,0.002]
[1754270712192,4.375,3544.6,3543.8,0.1408]
[1754270712530,0.1408,3544.4,3544.1,2.82156306]
[1754270712734,0.6149,3544.4,3543.8,0.44009435]
[1754270712918,0.9724,3544.3,3543.6,0.002]
[1754270713116,0.1408,3544.1,3543.6,0.1428]
[1754270713421,0.9724,3544.0,3543.8,2.82177928]
[1754270713617,0.9724,3543.9,3543.8,2.82177928]
[1754270714724,4.8471,3544.7,3544.5,2.82125431]
[1754270714926,0.1408,3545.1,3544.3,2.82143159]
[1754270715127,0.4983,3545.2,3545.1,2.8207949]
[1754270715432,0.4741,3545.4,3545.3,2.82063577]
[1754270715933,1e-08,3545.5,3545.4,2.82055621]
[1754270716724,1e-08,3545.5,3545.4,3.53955541]
[1754270717630,1e-08,3545.5,3545.4,10.94476097]
[1754270717928,1e-08,3545.5,3545.4,10.91655541]
[1754270722026,1e-08,3546.2,3546.1,2.81999943]